bitfinex/quotes_ETHUSD_20251201
["timestamp","ask_amount","ask_price","bid_price","bid_amount"]
[1764557704916,5.57421644,2843.5,2843.4,0.001]
[1764557705116,5.9248964,2843.5,2843.4,0.001]
[1764557706206,1.83042376,2843.5,2843.4,0.001]
[1764557706412,4.71589268,2843.5,2843.4,0.001]
[1764557707009,0.9721,2843.5,2843.4,0.001]
[1764557707213,0.7101,2843.5,2843.4,0.001]
[1764557707425,0.6866,2843.8,2843.4,0.001]
[1764557707708,0.227,2843.7,2843.4,0.001]
[1764557707890,0.227,2843.7,2843.4,0.851009]
[1764557708080,0.9136,2843.8,2843.4,0.851009]
[1764557708280,0.4931,2843.5,2843.4,0.81583984]
[1764557708488,0.227,2843.8,2843.4,0.001]
[1764557708712,0.716,2843.8,2843.4,0.001]
[1764557709107,0.4931,2843.5,2843.4,0.001]
[1764557709515,0.1976,2843.9,2843.4,0.03616916]
[1764557709812,0.227,2843.8,2843.4,0.001]
[1764557709988,0.227,2843.9,2843.4,0.50286916]
[1764557710404,0.227,2843.9,2843.4,0.03616916]
[1764557711027,0.227,2843.9,2843.5,4.103219]
[1764557711223,0.227,2843.9,2843.6,3.965736]
[1764557711524,0.1976,2844.2,2843.6,3.9657104]
[1764557711728,0.227,2844.1,2843.6,3.9657104]
[1764557711937,0.716,2844.1,2843.6,3.9657104]
[1764557712230,0.75119654,2844.1,2843.5,0.72559411]
[1764557712395,0.26219654,2844.1,2843.6,0.03516669]
[1764557712597,0.227,2844.1,2843.6,0.03516669]
[1764557712820,0.716,2844.1,2843.6,0.03516669]
[1764557714030,0.716,2844.1,2843.7,3.51654534]
[1764557714230,0.1976,2844.8,2844.0,8.59872681]
[1764557714431,0.03519654,2844.7,2844.1,0.4865]
[1764557714736,0.1514,2844.9,2844.1,1.83769411]
[1764557715529,0.1976,2845.0,2844.2,0.4667]
[1764557715728,0.4246,2845.3,2844.6,8.11222681]
[1764557716027,0.4246,2845.3,2844.7,3.51530917]
[1764557716028,0.9136,2845.3,2844.7,3.51530917]
[1764557716230,0.94879654,2845.3,2844.7,7.03061834]
[1764557716535,0.002,2845.5,2845.1,0.6442]
[1764557717204,0.002,2845.5,2845.1,1.83649411]
[1764557717404,0.002,2845.5,2845.1,2.8313662]
[1764557718108,0.002,2845.5,2845.1,6.34618114]
[1764557718314,0.002,2845.5,2845.1,5.87948114]
[1764557718609,0.002,2845.5,2845.1,6.34618114]
[1764557719012,0.002,2845.5,2845.1,15.95719414]
[1764557719808,0.002,2845.5,2845.1,12.57254114]
[1764557720504,0.002,2845.5,2845.1,5.23528114]
[1764557721006,0.491,2845.5,2845.1,4.50968703]
[1764557721335,0.491,2845.5,2845.1,4.24040905]
[1764557721537,0.002,2845.5,2845.1,4.72690905]
[1764557721835,0.002,2845.5,2845.1,5.19360905]
[1764557722740,0.002,2845.5,2845.1,17.65390905]
[1764557723142,0.002,2845.5,2845.4,12.240173]
[1764557723444,0.002,2845.5,2845.4,24.00802503]
[1764557723620,0.002,2845.5,2845.4,34.29618503]
[1764557723938,0.002,2845.5,2845.4,31.28899503]
[1764557724138,2.1687245,2846.9,2845.8,18.044724]
[1764557724325,0.03519654,2846.8,2846.1,0.72559411]
[1764557724509,0.03519654,2846.8,2846.2,1.58652278]
[1764557724715,2.1687245,2846.9,2846.2,1.58652278]
[1764557725038,0.03519654,2846.8,2846.2,1.58652278]
[1764557725257,0.03519654,2846.8,2846.0,15.13963369]
[1764557725258,0.4917,2846.3,2846.0,3.51370344]
[1764557725458,0.4917,2846.3,2846.0,7.02740688]
[1764557725631,0.4917,2846.3,2845.9,3.51380936]
[1764557725833,0.002,2846.4,2845.9,7.02763626]
[1764557726534,0.002,2846.4,2846.0,8.83782092]
[1764557726740,0.002,2846.4,2846.1,2.41832841]
[1764557726934,0.002,2846.4,2846.1,1.93792841]
[1764557727631,0.4951,2846.4,2846.1,1.93792841]
[1764557727847,0.4951,2846.4,2845.9,0.95259411]
[1764557728153,0.002,2846.4,2845.9,0.95259411]
[1764557728544,0.002,2846.4,2846.3,0.72559411]
[1764557728734,0.002,2846.4,2845.3,3.51456705]
[1764557728926,0.4917,2846.3,2845.3,7.38059164]
[1764557729128,0.03519654,2846.2,2845.4,0.03514444]
[1764557729555,0.4931,2846.1,2845.3,3.86602376]
[1764557729729,0.03519654,2846.0,2845.3,3.86602376]
[1764557730125,0.6861,2845.9,2845.3,3.86602376]
[1764557730769,0.193,2845.9,2845.4,0.72559411]
[1764557730951,0.193,2845.9,2845.3,0.72559411]
[1764557730952,0.4931,2845.8,2845.3,0.72559411]
[1764557731140,0.4931,2845.8,2845.4,0.03514444]
[1764557731341,0.4931,2845.8,2845.3,0.72559411]
[1764557731544,0.4931,2845.8,2845.3,0.76073978]
[1764557732253,0.03519654,2846.1,2845.3,1.55519809]
[1764557732454,0.4951,2846.4,2845.6,8.11222681]
[1764557732455,0.227,2846.2,2845.6,8.11222681]
[1764557732657,0.227,2846.2,2845.8,3.51395038]
[1764557732869,0.7201,2846.2,2845.8,3.51395038]
[1764557733185,0.7201,2846.2,2845.7,3.54916211]
[1764557733380,0.6452,2845.8,2845.7,0.03514073]
[1764557733684,0.6452,2845.8,2845.5,0.72559411]
[1764557733985,0.193,2846.0,2845.6,0.03514197]
[1764557734478,0.193,2846.0,2845.5,0.72559411]
[1764557734479,0.4931,2845.9,2845.5,0.72559411]
[1764557734673,0.4931,2845.9,2845.3,1.52005242]
[1764557734977,0.4931,2845.9,2845.5,0.72559411]
[1764557736698,0.4931,2845.9,2845.6,3.51419735]
[1764557736858,0.193,2846.0,2845.6,3.51419735]
[1764557737179,0.229,2846.2,2845.6,7.83894752]
[1764557737380,0.229,2846.2,2845.6,7.80380555]
[1764557737581,0.4951,2846.2,2845.7,0.03514073]
[1764557737779,0.03519654,2846.1,2845.7,0.03514073]
[1764557738282,0.6847,2845.8,2845.3,0.72559411]
[1764557738458,0.1535,2845.7,2845.4,0.03514444]
[1764557738658,0.6466,2845.7,2845.4,3.54949456]
[1764557739171,0.193,2845.8,2845.4,7.06393892]
[1764557739372,0.193,2845.9,2845.5,0.7789533]
[1764557739576,0.193,2845.9,2845.2,0.72559411]
[1764557739776,0.03519654,2846.1,2845.3,0.03514567]
[1764557739969,0.193,2845.9,2845.2,9.06482092]
[1764557740295,0.193,2845.9,2845.3,0.03514567]
[1764557740876,0.4931,2845.8,2845.4,3.51444436]
[1764557741075,0.4931,2845.8,2845.4,7.02888872]
[1764557741680,0.4931,2845.8,2845.5,0.0351432]
[1764557741908,0.193,2845.9,2845.5,0.0351432]
[1764557742108,0.6861,2845.9,2845.4,8.61555968]
[1764557742608,0.193,2845.9,2845.4,8.61555968]
[1764557742784,0.6861,2845.9,2845.6,3.51419735]
[1764557743303,0.03719654,2846.2,2845.7,0.70284926]
[1764557743604,0.53029654,2846.2,2845.6,7.0283947]
[1764557743809,0.53029654,2846.2,2845.7,0.03514073]
[1764557743973,0.75729654,2846.2,2845.7,0.03514073]
[1764557744667,0.4931,2846.1,2845.7,0.03514073]
[1764557744870,0.26419654,2846.2,2845.7,0.03514073]
[1764557744871,0.002,2846.2,2846.1,0.6275]
[1764557745102,0.002,2846.2,2846.1,1.50147268]
[1764557745305,0.002,2846.2,2846.1,0.87397268]
[1764557745478,0.4937,2846.2,2845.9,0.72559411]
[1764557745892,0.4931,2846.1,2845.8,3.51395038]
[1764557746204,0.3465,2845.9,2845.4,3.51442529]
[1764557746368,0.4884,2845.7,2845.4,7.02886965]
[1764557747003,0.4884,2845.7,2845.2,7.75497693]
[1764557747210,0.03719654,2846.2,2845.3,2.01149456]
[1764557747392,0.193,2845.9,2845.3,2.01149456]
[1764557749114,0.193,2845.9,2845.4,7.02888872]
[1764557749322,0.193,2845.9,2845.5,8.14737001]
[1764557749489,0.229,2846.2,2845.6,1.51762587]
[1764557749684,0.229,2846.2,2845.7,0.03514073]
[1764557750078,0.4931,2846.1,2845.7,0.03514073]
[1764557750920,0.4917,2845.8,2845.7,0.03514073]
[1764557751124,0.4917,2845.8,2845.7,3.51404093]
[1764557752112,0.4917,2845.8,2845.6,3.51414741]
[1764557752415,0.4917,2845.8,2845.6,3.54928938]
[1764557752713,0.4931,2846.1,2845.6,3.54928938]
[1764557752714,0.6466,2845.7,2845.6,3.54928938]
[1764557753223,0.6522,2845.7,2845.6,3.54928938]
[1764557753397,0.1535,2845.7,2845.6,3.54928938]
[1764557755117,0.6522,2845.7,2845.4,0.72559411]
[1764557755332,0.6522,2845.7,2845.4,0.76073855]
[1764557755333,0.4654,2845.6,2845.4,0.76073855]
[1764557755538,0.03519654,2846.0,2845.4,1.53981971]
[1764557756834,0.4987,2846.1,2845.5,7.0286417]
[1764557757039,0.4987,2846.1,2845.6,0.03514197]
[1764557757928,0.4654,2845.7,2845.5,3.51432085]
[1764557758128,0.03519654,2846.0,2845.5,3.51432085]
[1764557758330,0.4987,2845.9,2845.6,0.03514197]
[1764557758726,0.03719654,2846.2,2845.7,3.51407386]
[1764557758936,0.4987,2846.1,2845.7,3.51407386]
[1764557759136,0.4987,2846.1,2845.8,0.0351395]
[1764557759328,0.4654,2845.8,2845.7,3.51407386]
[1764557759523,0.4987,2846.1,2845.7,3.51407386]
[1764557759711,0.4987,2846.1,2845.8,0.0351395]
[1764557761019,0.002,2846.2,2846.0,1.19949411]
[1764557761335,0.002,2846.2,2846.1,9.31172092]
[1764557761515,0.002,2846.2,2846.1,1.19949411]
[1764557761717,0.002,2846.2,2846.1,0.72559411]
[1764557761922,0.002,2846.2,2846.1,1.5236189]
[1764557762443,0.002,2846.2,2846.1,1.9975189]
[1764557762815,0.002,2846.2,2846.1,1.5236189]
[1764557763023,0.002,2846.2,2846.1,4.23917409]
[1764557763737,0.002,2846.2,2846.1,4.71307409]
[1764557765753,0.002,2846.2,2845.6,1.08384589]
[1764557765754,0.9661,2846.2,2845.6,0.85684589]
[1764557765925,0.9661,2846.2,2845.7,0.03514073]
[1764557765926,0.1807,2846.1,2845.7,0.03514073]
[1764557766127,0.4987,2846.0,2845.7,0.03514073]
[1764557766530,0.4987,2846.0,2845.7,0.76073484]
[1764557766755,0.002,2846.2,2845.7,1.53964779]
[1764557767246,0.5007,2846.2,2845.7,1.53964779]
[1764557767827,0.002,2846.2,2845.7,4.29293214]
[1764557768024,0.6461,2845.8,2845.3,0.001]
[1764557768271,0.4654,2845.4,2845.3,0.001]
[1764557768730,0.9641,2845.4,2845.3,0.001]
[1764557768924,0.9641,2845.4,2844.0,0.1577]
[1764557768925,1.369604,2845.4,2844.0,3.51607916]
[1764557769122,0.35067996,2845.2,2844.1,0.35160792]
[1764557769322,0.1852,2844.1,2843.7,3.51652432]
[1764557769522,0.3715,2844.1,2843.7,3.51652432]
[1764557769752,0.3715,2844.1,2843.8,0.03516421]
[1764557770251,0.3715,2844.1,2843.6,0.03616669]
[1764557770492,0.3715,2844.1,2843.6,0.001]
[1764557770677,0.6517,2843.7,2843.6,0.001]
[1764557770979,0.4987,2844.0,2843.6,0.001]
[1764557771172,0.1863,2843.9,2843.6,0.001]
[1764557771488,0.1863,2844.1,2843.6,0.001]
[1764557771689,0.4987,2844.0,2843.6,0.001]
[1764557771986,0.4987,2844.0,2843.6,0.03616669]
[1764557772152,0.4987,2844.0,2843.6,0.001]
[1764557772356,0.4987,2844.4,2843.9,0.4739]
[1764557772661,0.1863,2844.8,2844.0,0.03516174]
[1764557772973,0.4987,2844.7,2844.0,0.03516174]
[1764557773160,0.4987,2844.7,2843.9,0.227]
[1764557773367,0.4987,2844.7,2844.0,0.03516174]
[1764557773550,0.4987,2844.7,2843.8,0.95259411]
[1764557773756,0.4987,2844.7,2843.9,0.96025543]
[1764557773993,0.4987,2844.7,2844.0,7.0323488]
[1764557774588,0.4987,2844.7,2844.1,0.1599]
[1764557774758,0.4987,2844.7,2844.2,0.03515927]
[1764557774967,0.1863,2844.8,2844.2,0.03515927]
[1764557775293,0.1863,2844.8,2844.2,1.15913752]
[1764557775452,0.1863,2845.0,2844.2,1.15913752]
[1764557775794,0.1863,2845.2,2844.3,1.22179411]
[1764557775994,0.1863,2845.2,2844.4,7.06651665]
[1764557776165,0.1863,2845.2,2844.5,1.10784968]
[1764557776166,0.685,2845.2,2844.5,1.10784968]
[1764557776495,0.685,2845.2,2844.6,0.03515432]
[1764557778060,0.685,2845.2,2844.7,3.51530917]
[1764557778473,0.4987,2845.1,2844.7,3.55046226]
[1764557778677,0.4987,2845.1,2844.7,3.51530917]
[1764557779995,0.4654,2844.8,2844.6,3.51543274]
[1764557780185,0.6517,2844.8,2844.6,3.51543274]
[1764557780583,0.53389654,2845.1,2844.6,7.0660198]
[1764557780789,0.53389654,2845.1,2844.6,7.84825243]
[1764557781615,0.1863,2845.2,2844.6,7.84825243]
[1764557781905,0.1863,2845.2,2844.7,0.03515309]
[1764557782397,0.1863,2845.2,2844.6,7.84825243]
[1764557782988,0.1863,2845.2,2844.3,3.51575625]
[1764557782989,0.499,2844.7,2844.5,3.51552961]
[1764557783496,0.52259654,2845.1,2844.5,7.03108594]
[1764557784888,0.52259654,2845.1,2844.3,7.03160706]
[1764557785108,0.52259654,2845.1,2844.3,7.25860706]
[1764557785718,0.52259654,2845.1,2844.3,10.77441059]
[1764557785893,0.52259654,2845.1,2844.4,2.08999169]
[1764557786088,0.52259654,2845.1,2844.2,1.12397825]
[1764557786391,0.483,2844.3,2843.9,0.03516298]
[1764557786791,0.4884,2844.2,2843.9,3.55134411]
[1764557787774,0.483,2844.0,2843.7,3.51649196]
[1764557787979,0.4884,2844.2,2843.8,0.03516421]
[1764557788808,0.7154,2844.5,2843.8,0.03516421]
[1764557789611,0.7154,2844.5,2844.3,0.001]
[1764557789612,0.4884,2844.5,2844.3,0.001]
[1764557789815,0.227,2844.6,2844.3,0.001]
[1764557790113,0.483,2844.4,2844.3,0.001]
[1764557790480,0.9714,2844.4,2844.3,0.001]
[1764557791914,0.483,2844.4,2844.3,0.001]
[1764557792490,0.75059654,2844.7,2844.3,0.001]
[1764557792903,0.03519654,2844.7,2844.3,0.001]
[1764557793091,0.227,2844.8,2844.3,0.001]
[1764557793916,0.227,2844.9,2844.3,7.03260706]
[1764557794117,0.227,2844.9,2844.4,0.03515679]
[1764557794517,0.7154,2844.9,2844.4,0.03515679]
[1764557795227,0.52359654,2844.8,2844.3,0.03615803]
[1764557795524,0.52359654,2844.8,2844.3,0.75894557]
[1764557795934,0.52359654,2844.8,2844.4,3.51567993]
[1764557796428,0.483,2844.5,2844.4,3.51567993]
[1764557796838,0.483,2844.5,2844.3,0.001]
[1764557796839,1.1984,2844.5,2844.3,0.001]
[1764557797037,0.2072,2844.4,2844.3,0.001]
[1764557797198,0.6956,2844.4,2844.3,0.001]
[1764557798095,4.21127993,2844.4,2844.3,0.001]
[1764557798501,4.24647647,2844.4,2844.3,0.001]
[1764557799103,5.08044843,2844.4,2844.3,0.001]
[1764557799524,1.5647685,2844.4,2844.3,0.001]
[1764557799730,0.95779654,2844.4,2844.3,0.001]
[1764557800025,4.43827993,2844.4,2844.3,0.001]
[1764557800188,4.47347647,2844.4,2844.3,0.001]
[1764557804228,0.95779654,2844.4,2844.3,0.001]
[1764557804394,0.9226,2844.4,2844.3,0.001]
[1764557804595,0.03519654,2844.5,2844.3,0.001]
[1764557804831,0.483,2844.4,2844.3,0.001]
[1764557805603,0.9714,2844.4,2844.3,0.001]
[1764557805945,1.00659654,2844.4,2844.3,0.001]
[1764557806728,0.9714,2844.4,2844.3,0.001]
[1764557807107,0.483,2844.4,2844.3,0.001]
[1764557807512,0.9714,2844.4,2844.3,0.001]
[1764557808044,4.48707993,2844.4,2844.3,0.001]
[1764557808207,1.829561,2844.4,2844.3,0.001]
[1764557808397,5.34524093,2844.4,2844.3,0.001]
[1764557809022,1.829561,2844.4,2844.3,0.001]
[1764557809329,0.9714,2844.4,2844.3,0.001]
[1764557809530,1.00659654,2844.4,2844.3,0.001]
[1764557810295,4.52227647,2844.4,2844.3,0.001]
[1764557813035,5.24787058,2844.4,2844.3,0.001]
[1764557813240,6.00405454,2844.4,2844.3,0.001]
[1764557813421,6.97871614,2844.4,2844.3,0.001]
[1764557813736,6.9435196,2844.4,2844.3,0.001]
[1764557814998,6.18733564,2844.4,2844.3,0.001]
[1764557815203,6.22253218,2844.4,2844.3,0.001]
[1764557816209,6.57321214,2844.4,2844.3,0.001]
[1764557818920,6.22253218,2844.4,2844.3,0.001]
[1764557819315,6.57321214,2844.4,2844.3,0.001]
[1764557820254,6.22253218,2844.4,2844.3,0.001]
[1764557820742,6.57321214,2844.4,2844.3,0.001]
[1764557821038,6.97871614,2844.4,2844.3,0.001]
[1764557821238,6.9435196,2844.4,2844.3,0.001]
[1764557822051,10.6485196,2844.4,2844.3,0.001]
[1764557822342,0.75618396,2844.1,2844.0,0.001]
[1764557822644,1.2255805,2844.1,2844.0,0.001]
[1764557822945,1.7225805,2844.1,2844.0,0.001]
[1764557823147,5.92902884,2844.1,2844.0,0.001]
[1764557823437,5.96422538,2844.1,2844.0,0.001]
[1764557823739,7.12087493,2844.1,2844.0,0.001]
[1764557824045,7.08567839,2844.1,2844.0,0.001]
[1764557824228,10.79067839,2844.1,2844.0,0.001]
[1764557824434,0.1863,2845.2,2844.0,0.4616]
[1764557824612,0.4677,2844.1,2844.0,0.001]
[1764557824811,0.6947,2844.1,2844.0,0.001]
[1764557825107,1.1917,2844.1,2844.0,0.001]
[1764557825311,4.70775077,2844.1,2844.0,0.001]
[1764557825507,6.25479992,2844.1,2844.0,0.001]
[1764557825735,6.28999646,2844.1,2844.0,0.001]
[1764557828772,6.69550046,2844.1,2844.0,0.001]
[1764557829089,6.66030392,2844.1,2844.0,0.001]
[1764557830346,6.16330392,2844.1,2844.0,0.001]
[1764557830654,5.8478205,2844.1,2844.0,0.001]
[1764557830854,6.19850046,2844.1,2844.0,0.001]
[1764557831064,6.69550046,2844.1,2844.0,0.001]
[1764557831252,6.66030392,2844.1,2844.0,0.001]
[1764557835290,5.81262396,2844.1,2844.0,0.001]
[1764557835478,6.69550046,2844.1,2844.0,0.001]
[1764557835664,6.66030392,2844.1,2844.0,0.001]
[1764557840401,5.58562396,2844.1,2844.0,0.001]
[1764557840594,6.19850046,2844.1,2844.0,0.001]
[1764557840757,6.69550046,2844.1,2844.0,0.001]
[1764557840957,6.66030392,2844.1,2844.0,0.001]
[1764557842830,6.16330392,2844.1,2844.0,0.001]
[1764557843106,6.46750046,2844.1,2844.0,0.001]
[1764557843306,6.69450046,2844.1,2844.0,0.001]
[1764557843603,6.65930392,2844.1,2844.0,0.001]
[1764557847410,10.36430392,2844.1,2844.0,0.001]
[1764557848478,4.71241996,2844.1,2844.0,0.4666]
[1764557848724,4.95934488,2844.1,2844.0,0.001]
[1764557849011,6.24862538,2844.1,2844.0,0.001]
[1764557850779,4.76754142,2844.1,2844.0,0.001]
[1764557851106,5.34522138,2844.1,2844.0,0.001]
[1764557851411,5.88085686,2844.1,2844.0,0.001]
[1764557852206,6.23153682,2844.1,2844.0,0.001]
[1764557852508,7.13494082,2844.1,2844.0,0.001]
[1764557852689,7.09974428,2844.1,2844.0,0.001]
[1764557854298,5.47864028,2844.1,2844.0,0.001]
[1764557854503,5.74083682,2844.1,2844.0,0.4666]
[1764557854706,5.74083682,2844.1,2844.0,0.001]
[1764557855912,5.39015686,2844.1,2844.0,0.001]
[1764557856409,5.74083682,2844.1,2844.0,0.001]
[1764557857921,5.88085686,2844.1,2844.0,0.001]
[1764557858318,6.23153682,2844.1,2844.0,0.001]
[1764557858528,5.39015686,2844.1,2844.0,0.4666]
[1764557858735,4.85452138,2844.1,2844.0,0.001]
[1764557859513,5.34522138,2844.1,2844.0,0.001]
[1764557862315,0.03519654,2844.1,2844.0,0.9449]
[1764557862517,0.226,2844.1,2844.0,0.9449]
[1764557862719,0.26119654,2844.1,2844.0,0.9449]
[1764557863023,0.26119654,2844.1,2844.0,0.4666]
[1764557863621,0.26119654,2844.1,2844.0,0.9449]
[1764557864117,0.226,2844.1,2844.0,0.9449]
[1764557864326,3.74205077,2844.1,2844.0,0.9449]
[1764557865208,0.226,2844.1,2844.0,0.9449]
[1764557865927,3.74205077,2844.1,2844.0,0.9449]
[1764557867328,0.226,2844.1,2844.0,0.9449]
[1764557867826,3.55117107,2844.2,2844.0,0.9449]
[1764557867827,0.03519654,2844.2,2844.0,17.35039684]
[1764557868026,0.002,2844.3,2844.1,2.83883968]
[1764557868227,0.002,2844.3,2844.2,7.14941946]
[1764557868401,0.002,2844.3,2844.2,11.1436466]
[1764557868723,0.002,2844.3,2844.2,7.62771946]
[1764557868928,0.002,2844.3,2844.2,12.44761208]
[1764557869129,0.002,2844.3,2844.2,8.93168494]
[1764557869330,0.002,2844.3,2844.2,12.44761208]
[1764557870097,0.002,2844.3,2844.2,2.24786548]
[1764557870498,0.002,2844.3,2844.2,0.9439]
[1764557870699,0.002,2844.3,2844.2,0.4656]
[1764557870908,0.4927,2844.3,2844.0,0.001]
[1764557871231,0.26119654,2844.2,2844.0,0.001]
[1764557871431,0.26119654,2844.2,2844.0,0.4793]
[1764557871729,0.26119654,2844.2,2844.1,0.4656]
[1764557872323,3.77712368,2844.2,2844.0,0.001]
[1764557873033,3.77712368,2844.2,2844.1,0.4972]
[1764557873418,7.75175082,2844.2,2844.0,0.001]
[1764557873618,8.49192936,2844.2,2844.0,0.001]
[1764557874008,8.03322936,2844.2,2844.0,0.001]
[1764557874338,4.43745077,2844.1,2844.0,0.001]
[1764557874630,4.78813073,2844.1,2844.0,0.001]
[1764557874932,4.36062727,2844.1,2844.0,0.001]
[1764557875133,5.29489022,2844.1,2844.0,0.001]
[1764557876231,4.48551026,2844.1,2844.0,0.001]
[1764557876435,0.26119654,2844.1,2844.0,0.4982]
[1764557876608,3.74205077,2844.1,2844.0,0.4982]
[1764557877000,0.226,2844.1,2844.0,0.4982]
[1764557877206,0.226,2844.1,2844.0,0.9726]
[1764557877635,3.74205077,2844.1,2844.0,0.9726]
[1764557877831,3.74205077,2844.1,2844.0,0.4982]
[1764557878137,5.00281649,2844.1,2844.0,0.001]
[1764557878535,1.06326226,2844.1,2844.0,0.4982]
[1764557878717,0.226,2844.1,2844.0,0.9726]
[1764557878906,3.74205077,2844.1,2844.0,0.4982]
[1764557879729,3.74205077,2844.1,2844.0,0.001]
[1764557879933,3.74205077,2844.1,2844.0,0.4982]
[1764557880136,3.77724731,2844.1,2844.0,0.4982]
[1764557881219,3.74205077,2844.1,2844.0,0.4982]
[1764557881415,3.77724731,2844.1,2844.0,0.4982]
[1764557881713,0.26119654,2844.1,2844.0,0.9726]
[1764557882034,0.26119654,2844.1,2844.0,0.001]
[1764557882035,4.20075077,2844.1,2844.0,0.001]
[1764557882416,4.6245455,2844.1,2844.0,0.001]
[1764557882806,4.65974204,2844.1,2844.0,0.001]
[1764557883006,4.23594731,2844.1,2844.0,0.001]
[1764557883232,4.69864731,2844.1,2844.0,0.001]
[1764557883423,3.77724731,2844.1,2844.0,0.4982]
[1764557883840,3.77724731,2844.1,2844.0,0.001]
[1764557884134,4.23594731,2844.1,2844.0,0.001]
[1764557884433,5.01133526,2844.1,2844.0,0.001]
[1764557885152,4.55263526,2844.1,2844.0,0.001]
[1764557886009,4.55263526,2844.1,2844.0,0.4982]
[1764557886206,0.26119654,2844.1,2844.0,0.4982]
[1764557886413,0.226,2844.1,2844.0,0.9726]
[1764557888453,3.74205077,2844.1,2844.0,0.9726]
[1764557888741,3.74205077,2844.1,2844.0,0.001]
[1764557888942,4.54412849,2844.1,2844.0,0.001]
[1764557889142,4.57932503,2844.1,2844.0,0.001]
[1764557889548,3.77724731,2844.1,2844.0,0.4982]
[1764557890345,4.23594731,2844.1,2844.0,0.001]
[1764557890515,3.77724731,2844.1,2844.0,0.001]
[1764557890720,4.69864731,2844.1,2844.0,0.001]
[1764557890940,3.77724731,2844.1,2844.0,0.001]
[1764557891722,3.77724731,2844.1,2844.0,0.4982]
[1764557895252,3.77724731,2844.1,2844.0,0.001]
[1764557896058,4.23594731,2844.1,2844.0,0.001]
[1764557896247,5.54659503,2844.1,2844.0,0.001]
[1764557896445,5.89727499,2844.1,2844.0,0.001]
[1764557896835,5.54659503,2844.1,2844.0,0.001]
[1764557897226,5.89727499,2844.1,2844.0,0.001]
[1764557898330,6.6228691,2844.1,2844.0,0.001]
[1764557898526,16.50885595,2844.1,2844.0,0.001]
[1764557898845,16.96524869,2844.1,2844.0,0.001]
[1764557899823,13.03424869,2844.1,2844.0,0.001]
[1764557900047,13.26024869,2844.1,2844.0,0.001]
[1764557903566,6.99317656,2844.1,2844.0,0.001]
[1764557904068,6.76717656,2844.1,2844.0,0.001]
[1764557904370,6.99317656,2844.1,2844.0,0.001]
[1764557905493,6.76717656,2844.1,2844.0,0.001]
[1764557905659,13.11933937,2844.1,2844.0,0.001]
[1764557907043,13.26023777,2844.1,2844.0,0.001]
[1764557909775,16.82433937,2844.1,2844.0,0.001]
[1764557909975,4.19595077,2844.1,2844.0,0.001]
[1764557910178,4.54663073,2844.1,2844.0,0.001]
[1764557910352,4.95674142,2844.1,2844.0,0.001]
[1764557910556,4.63665131,2844.1,2844.0,0.001]
[1764557910752,4.98733127,2844.1,2844.0,0.001]
[1764557910957,5.36224542,2844.1,2844.0,0.001]
[1764557911272,4.90834542,2844.1,2844.0,0.001]
[1764557911443,4.90834542,2844.1,2844.0,0.4832]
[1764557911643,4.18275131,2844.1,2844.0,0.4832]
[1764557912072,4.50284142,2844.1,2844.0,0.4832]
[1764557912276,5.30742138,2844.1,2844.0,0.001]
[1764557913181,4.85352138,2844.1,2844.0,0.001]
[1764557913350,4.50284142,2844.1,2844.0,0.001]
[1764557913550,4.85352138,2844.1,2844.0,0.001]
[1764557914048,4.85352138,2844.1,2844.0,0.4832]
[1764557914671,4.95674142,2844.1,2844.0,0.001]
[1764557914873,6.56039282,2844.1,2844.0,0.001]
[1764557915074,7.02599282,2844.1,2844.0,0.001]
[1764557915371,6.99079628,2844.1,2844.0,0.001]
[1764557916177,16.82195909,2844.1,2844.0,0.001]
[1764557916356,16.96285798,2844.1,2844.0,0.001]
[1764557920684,10.61069517,2844.1,2844.0,0.001]
[1764557920867,10.69579628,2844.1,2844.0,0.001]
[1764557927099,16.82195909,2844.1,2844.0,0.001]
[1764557927396,16.96285699,2844.1,2844.0,0.001]
[1764557932202,23.30285699,2844.1,2844.0,0.001]
[1764557934278,3.51605077,2844.1,2844.0,0.9766]
[1764557934465,3.77724731,2844.1,2844.0,0.4887]
[1764557934669,4.85352138,2844.1,2844.0,0.001]
[1764557934965,5.25902538,2844.1,2844.0,0.4887]
[1764557935169,5.25902538,2844.1,2844.0,0.001]
[1764557935399,5.32582138,2844.1,2844.0,0.001]
[1764557935902,5.25902538,2844.1,2844.0,0.4887]
[1764557936197,4.90834542,2844.1,2844.0,0.9766]
[1764557936699,4.50284142,2844.1,2844.0,0.9766]
[1764557936893,0.03519654,2844.1,2844.0,0.9766]
[1764557937087,3.77724731,2844.1,2844.0,0.9766]
[1764557937288,4.50284142,2844.1,2844.0,0.9766]
[1764557937489,0.98679065,2844.1,2844.0,0.9766]
[1764557937798,4.50284142,2844.1,2844.0,0.9766]
[1764557939386,4.50284142,2844.1,2844.0,0.001]
[1764557939585,4.50284142,2844.1,2844.0,0.4887]
[1764557939804,4.50284142,2844.1,2844.0,0.9766]
[1764557941888,4.50284142,2844.1,2844.0,0.4887]
[1764557942408,4.50284142,2844.1,2844.0,0.9766]
[1764557944099,0.226,2844.1,2844.0,0.9766]
[1764557944493,0.26119654,2844.1,2844.0,0.9766]
[1764557944826,0.03519654,2844.1,2844.0,0.9766]
[1764557945035,0.26119654,2844.1,2844.0,0.9766]
[1764557945406,0.03719654,2844.3,2844.0,0.9766]
[1764557945608,0.226,2844.2,2844.1,0.4879]
[1764557946220,0.226,2844.2,2844.1,1.1355]
[1764557946396,3.74192714,2844.2,2844.1,1.1355]
[1764557949232,3.74192714,2844.2,2844.1,0.6476]
[1764557949430,1.13109811,2844.1,2844.0,0.001]
[1764557949729,1.39229465,2844.1,2844.0,0.001]
[1764557949931,1.74297461,2844.1,2844.0,0.4887]